[Event "Late-Titled-Tuesday-Blitz-April-02-2024"]
[Site "Chess.com"]
[Date "2024.04.02"]
[Round "3"]
[White "Eagle_2019"]
[Black "AGW2016"]
[Result "1-0"]
[WhiteElo "2873"]
[BlackElo "2567"]
[TimeControl "180+1"]
[EndTime "14:29:21 PDT"]
[Termination "Eagle_2019 won by resignation"]

1. d4 {[%clk 0:03:00.9]} 1... Nf6 {[%clk 0:02:58.8]} 2. Bg5 {[%clk 0:02:58.4]}
2... d5 {[%clk 0:02:56.6]} 3. Nd2 {[%clk 0:02:48.1]} 3... c5 {[%clk 0:02:55.1]}
4. Bxf6 {[%clk 0:02:42.1]} 4... exf6 {[%clk 0:02:44.9]} 5. dxc5 {[%clk
0:02:41.5]} 5... Bxc5 {[%clk 0:02:45]} 6. c3 {[%clk 0:02:39.4]} 6... O-O {[%clk
0:02:42.5]} 7. Nb3 {[%clk 0:02:34.6]} 7... Bb6 {[%clk 0:02:42.3]} 8. Nf3 {[%clk
0:02:28]} 8... Nc6 {[%clk 0:02:40.8]} 9. g3 {[%clk 0:02:26.3]} 9... Re8 {[%clk
0:02:39.3]} 10. Bg2 {[%clk 0:02:25.6]} 10... Bg4 {[%clk 0:02:40]} 11. O-O {[%clk
0:02:24.9]} 11... Qd7 {[%clk 0:02:39.8]} 12. e3 {[%clk 0:02:23.3]} 12... Rad8
{[%clk 0:02:39.7]} 13. Qd3 {[%clk 0:02:19]} 13... Ne5 {[%clk 0:02:38]} 14. Nxe5
{[%clk 0:02:16.2]} 14... fxe5 {[%clk 0:02:38.9]} 15. a4 {[%clk 0:02:14.6]} 15...
a6 {[%clk 0:02:36.5]} 16. a5 {[%clk 0:02:13.6]} 16... Ba7 {[%clk 0:02:36.7]} 17.
Nd2 {[%clk 0:02:12.5]} 17... h6 {[%clk 0:02:24.1]} 18. Rfe1 {[%clk 0:02:10]}
18... Bf5 {[%clk 0:02:18.9]} 19. Qe2 {[%clk 0:02:04]} 19... Bg6 {[%clk
0:02:18.6]} 20. Nb3 {[%clk 0:02:01.1]} 20... Qc7 {[%clk 0:02:16.8]} 21. Rad1
{[%clk 0:01:50.4]} 21... Qc6 {[%clk 0:02:02]} 22. e4 {[%clk 0:01:44.4]} 22...
Qa4 {[%clk 0:01:50.4]} 23. Qc2 {[%clk 0:01:34.9]} 23... d4 {[%clk 0:01:22.8]}
24. cxd4 {[%clk 0:01:20.8]} 24... exd4 {[%clk 0:01:22.5]} 25. Qd3 {[%clk
0:01:16.1]} 25... Qb4 {[%clk 0:01:15]} 26. Re2 {[%clk 0:01:02.9]} 26... Rc8
{[%clk 0:01:09]} 27. Bh3 {[%clk 0:00:58.5]} 27... Rc7 {[%clk 0:01:04.6]} 28.
Rde1 {[%clk 0:00:48.4]} 28... Qc4 {[%clk 0:00:57]} 29. Nc1 {[%clk 0:00:41.9]}
29... Qb4 {[%clk 0:00:53.7]} 30. Nb3 {[%clk 0:00:32.9]} 30... Qc4 {[%clk
0:00:53.7]} 31. Nc1 {[%clk 0:00:32]} 31... Qb4 {[%clk 0:00:53]} 32. Kg2 {[%clk
0:00:30.7]} 32... Qxa5 {[%clk 0:00:52.5]} 33. Bf5 {[%clk 0:00:30.7]} 33... Bxf5
{[%clk 0:00:45.4]} 34. exf5 {[%clk 0:00:31.6]} 34... Rxe2 {[%clk 0:00:45.3]} 35.
Nxe2 {[%clk 0:00:28.2]} 35... Qd5+ {[%clk 0:00:45.5]} 36. f3 {[%clk 0:00:26.5]}
36... Qc4 {[%clk 0:00:39.7]} 37. Qd2 {[%clk 0:00:20.3]} 37... Qc2 {[%clk
0:00:31.1]} 38. Rd1 {[%clk 0:00:20]} 38... d3 {[%clk 0:00:31.5]} 39. Qxd3 {[%clk
0:00:19.3]} 39... Qxd3 {[%clk 0:00:31.9]} 40. Rxd3 {[%clk 0:00:20.2]} 40... Rc2
{[%clk 0:00:32.5]} 41. Kf1 {[%clk 0:00:20.1]} 41... Rxb2 {[%clk 0:00:33]} 42.
Rd8+ {[%clk 0:00:20]} 42... Kh7 {[%clk 0:00:33.4]} 43. Rf8 {[%clk 0:00:20.1]}
43... Rb1+ {[%clk 0:00:16.9]} 44. Kg2 {[%clk 0:00:19.9]} 44... Rb2 {[%clk
0:00:17.7]} 45. Kf1 {[%clk 0:00:20]} 45... a5 {[%clk 0:00:12.5]} 46. Rxf7 {[%clk
0:00:19.7]} 46... Kg8 {[%clk 0:00:13.2]} 47. Re7 {[%clk 0:00:14.8]} 47... a4
{[%clk 0:00:13.7]} 48. Nf4 {[%clk 0:00:14.9]} 48... a3 {[%clk 0:00:13.2]} 49.
Ng6 {[%clk 0:00:15.1]} 49... Bc5 {[%clk 0:00:11]} 50. Re8+ {[%clk 0:00:12.4]}
50... Kf7 {[%clk 0:00:11.7]} 51. Ra8 {[%clk 0:00:12.4]} 51... a2 {[%clk
0:00:11.7]} 52. Ne5+ {[%clk 0:00:12.6]} 52... Kf6 {[%clk 0:00:11.5]} 53. Nd7+
{[%clk 0:00:12.8]} 53... Kxf5 {[%clk 0:00:11.6]} 54. Nxc5 {[%clk 0:00:13.7]}
54... Rb1+ {[%clk 0:00:12.3]} 55. Kg2 {[%clk 0:00:13.5]} 55... a1=Q {[%clk
0:00:12]} 56. Rxa1 {[%clk 0:00:13.6]} 56... Rxa1 {[%clk 0:00:12.9]} 57. Nxb7
{[%clk 0:00:13.9]} 57... Rd1 {[%clk 0:00:13]} 58. Nc5 {[%clk 0:00:13.8]} 58...
Rd2+ {[%clk 0:00:13.6]} 59. Kg1 {[%clk 0:00:13.5]} 59... Rd1+ {[%clk 0:00:13.8]}
60. Kf2 {[%clk 0:00:13.3]} 60... Rd5 {[%clk 0:00:14.7]} 61. Ne4 {[%clk
0:00:13.4]} 61... Ra5 {[%clk 0:00:15.4]} 62. h4 {[%clk 0:00:13.6]} 62... Ra2+
{[%clk 0:00:15.4]} 63. Ke3 {[%clk 0:00:14]} 63... h5 {[%clk 0:00:15.9]} 64. Nf2
{[%clk 0:00:13.6]} 64... Ra3+ {[%clk 0:00:16.1]} 65. Ke2 {[%clk 0:00:14]} 65...
g6 {[%clk 0:00:16]} 66. Nd3 {[%clk 0:00:14.1]} 66... Ra2+ {[%clk 0:00:16]} 67.
Kf1 {[%clk 0:00:14.4]} 67... Ke6 {[%clk 0:00:15.5]} 68. Nf4+ {[%clk 0:00:14.4]}
68... Kf6 {[%clk 0:00:15.8]} 69. Nh3 {[%clk 0:00:13.9]} 69... Kf5 {[%clk
0:00:15.9]} 70. Ng5 {[%clk 0:00:13.6]} 70... Ke5 {[%clk 0:00:16.3]} 71. Ne4
{[%clk 0:00:13.8]} 71... Kd4 {[%clk 0:00:16.7]} 72. Ng5 {[%clk 0:00:13.5]} 72...
Ke3 {[%clk 0:00:17.1]} 73. Kg1 {[%clk 0:00:13.9]} 73... Ra1+ {[%clk 0:00:17.2]}
74. Kg2 {[%clk 0:00:14.3]} 74... Ra2+ {[%clk 0:00:17.6]} 75. Kg1 {[%clk
0:00:14.7]} 75... Rb2 {[%clk 0:00:16.8]} 76. Kf1 {[%clk 0:00:13.8]} 76... Rf2+
{[%clk 0:00:16.4]} 77. Kg1 {[%clk 0:00:14.2]} 77... Rxf3 {[%clk 0:00:17.3]} 78.
Nxf3 {[%clk 0:00:13.9]} 78... Kxf3 {[%clk 0:00:18.2]} 79. Kh2 {[%clk 0:00:13.9]}
79... Kf2 {[%clk 0:00:19]} 80. Kh3 {[%clk 0:00:14.4]} 80... Kf3 {[%clk
0:00:19.1]} 81. Kh2 {[%clk 0:00:14.5]} 81... Kf2 {[%clk 0:00:19.6]} 82. Kh3
{[%clk 0:00:15]} 82... Kg1 {[%clk 0:00:20.4]} 83. g4 {[%clk 0:00:15.4]} 83...
Kh1 {[%clk 0:00:20.9]} 84. Kg3 {[%clk 0:00:15.8]} 84... Kg1 {[%clk 0:00:21]} 85.
g5 {[%clk 0:00:10.4]} 85... Kh1 {[%clk 0:00:19.2]} 86. Kf4 {[%clk 0:00:09]}
86... Kh2 {[%clk 0:00:19.7]} 87. Ke5 {[%clk 0:00:09.4]} 87... Kh3 {[%clk
0:00:20.5]} 88. Kf6 {[%clk 0:00:09.7]} 88... Kxh4 {[%clk 0:00:21.3]} 89. Kxg6
{[%clk 0:00:10.1]} 89... Kg4 {[%clk 0:00:22]} 90. Kf6 {[%clk 0:00:10.6]} 90...
h4 {[%clk 0:00:22.8]} 91. g6 {[%clk 0:00:11.1]} 91... h3 {[%clk 0:00:22.8]} 92.
g7 {[%clk 0:00:11.4]} 92... h2 {[%clk 0:00:23.4]} 93. g8=Q+ {[%clk 0:00:11.7]}
93... Kf3 {[%clk 0:00:24]} 94. Qd5+ {[%clk 0:00:11.8]} 94... Kg3 {[%clk
0:00:24.4]} 95. Qh1 {[%clk 0:00:11.9]} 1-0

[Event "Late-Titled-Tuesday-Blitz-April-02-2024"]
[Site "Chess.com"]
[Date "2024.04.02"]
[Round "3"]
[White "Rud_Makarian"]
[Black "FrankDux44"]
[Result "0-1"]
[WhiteElo "3019"]
[BlackElo "2706"]
[TimeControl "180+1"]
[EndTime "14:29:23 PDT"]
[Termination "FrankDux44 won by resignation"]

1. d4 {[%clk 0:02:57]} 1... d6 {[%clk 0:02:58.9]} 2. Nf3 {[%clk 0:02:56.9]} 2...
Bg4 {[%clk 0:02:57.9]} 3. g3 {[%clk 0:02:54.3]} 3... Bxf3 {[%clk 0:02:57.1]} 4.
exf3 {[%clk 0:02:55.2]} 4... d5 {[%clk 0:02:57.7]} 5. f4 {[%clk 0:02:53.2]} 5...
e6 {[%clk 0:02:58.1]} 6. c3 {[%clk 0:02:52.1]} 6... c6 {[%clk 0:02:58.1]} 7. Nd2
{[%clk 0:02:50.6]} 7... g6 {[%clk 0:02:58.5]} 8. Nf3 {[%clk 0:02:51]} 8... Nd7
{[%clk 0:02:57.1]} 9. Bd3 {[%clk 0:02:51]} 9... Bg7 {[%clk 0:02:55.2]} 10. Qe2
{[%clk 0:02:47.7]} 10... Ne7 {[%clk 0:02:55.3]} 11. Ne5 {[%clk 0:02:45.5]} 11...
h5 {[%clk 0:02:49.3]} 12. h4 {[%clk 0:02:44.9]} 12... Nf5 {[%clk 0:02:43.2]} 13.
Kf1 {[%clk 0:02:41.1]} 13... Nxe5 {[%clk 0:02:42.7]} 14. fxe5 {[%clk 0:02:41.2]}
14... Bh6 {[%clk 0:02:39]} 15. Bxf5 {[%clk 0:02:31.1]} 15... exf5 {[%clk
0:02:31.7]} 16. Bxh6 {[%clk 0:02:28.5]} 16... Rxh6 {[%clk 0:02:32.6]} 17. Kg2
{[%clk 0:02:01.1]} 17... Qe7 {[%clk 0:02:30.4]} 18. b4 {[%clk 0:02:00.2]} 18...
Rh8 {[%clk 0:02:27.2]} 19. a4 {[%clk 0:01:58.2]} 19... Kf8 {[%clk 0:02:25.4]}
20. b5 {[%clk 0:01:45.1]} 20... Kg7 {[%clk 0:02:18.8]} 21. c4 {[%clk 0:01:38.2]}
21... Qe6 {[%clk 0:02:16.7]} 22. c5 {[%clk 0:01:37.5]} 22... Rhc8 {[%clk
0:02:08.2]} 23. Rhc1 {[%clk 0:01:28.8]} 23... b6 {[%clk 0:02:07.2]} 24. Rab1
{[%clk 0:01:19.1]} 24... cxb5 {[%clk 0:01:59.8]} 25. axb5 {[%clk 0:01:18.1]}
25... bxc5 {[%clk 0:01:58.4]} 26. dxc5 {[%clk 0:01:09.4]} 26... d4 {[%clk
0:01:58.7]} 27. c6 {[%clk 0:00:49.8]} 27... a6 {[%clk 0:01:57.3]} 28. Rc5 {[%clk
0:00:36.8]} 28... axb5 {[%clk 0:01:56.9]} 29. Qxb5 {[%clk 0:00:36.5]} 29... Ra7
{[%clk 0:01:39.3]} 30. Qc4 {[%clk 0:00:32.9]} 30... Qxc4 {[%clk 0:01:21.9]} 31.
Rxc4 {[%clk 0:00:33.8]} 31... Rac7 {[%clk 0:01:14.2]} 32. Rb6 {[%clk 0:00:21.9]}
32... f6 {[%clk 0:01:04.9]} 33. e6 {[%clk 0:00:20.3]} 33... Kf8 {[%clk
0:01:04.8]} 34. Rxd4 {[%clk 0:00:14.3]} 34... Rxc6 {[%clk 0:01:04.5]} 35. Rb7
{[%clk 0:00:14.2]} 35... R8c7 {[%clk 0:01:01.1]} 36. Rxc7 {[%clk 0:00:10.9]}
36... Rxc7 {[%clk 0:01:00.7]} 37. Rd8+ {[%clk 0:00:11.4]} 37... Ke7 {[%clk
0:00:58.4]} 38. Rg8 {[%clk 0:00:11.1]} 38... Kxe6 {[%clk 0:00:58.2]} 39. Rxg6
{[%clk 0:00:11.2]} 39... f4 {[%clk 0:00:56.6]} 40. Rh6 {[%clk 0:00:07.7]} 40...
fxg3 {[%clk 0:00:56.3]} 41. fxg3 {[%clk 0:00:07.1]} 41... Rc5 {[%clk 0:00:56.6]}
42. Rh7 {[%clk 0:00:07]} 42... Ra5 {[%clk 0:00:56.1]} 43. Kf3 {[%clk 0:00:07.1]}
43... Ra3+ {[%clk 0:00:55.3]} 44. Kf4 {[%clk 0:00:07.7]} 44... Ra4+ {[%clk
0:00:55.4]} 45. Kf3 {[%clk 0:00:08.4]} 45... Ra3+ {[%clk 0:00:55.9]} 46. Kg2
{[%clk 0:00:08.9]} 46... Ra2+ {[%clk 0:00:54.9]} 47. Kh3 {[%clk 0:00:09]} 47...
Ra5 {[%clk 0:00:55.8]} 48. Rc7 {[%clk 0:00:09]} 48... Rb5 {[%clk 0:00:55.8]} 49.
Rc4 {[%clk 0:00:07.3]} 49... Kf7 {[%clk 0:00:55.1]} 50. Kg2 {[%clk 0:00:07.5]}
50... Kg6 {[%clk 0:00:55.2]} 51. Kf3 {[%clk 0:00:08.1]} 51... Ra5 {[%clk
0:00:55.4]} 52. Kf4 {[%clk 0:00:07.2]} 52... Rb5 {[%clk 0:00:55.6]} 53. Rd4
{[%clk 0:00:06.8]} 53... Ra5 {[%clk 0:00:55.8]} 54. Rd8 {[%clk 0:00:07]} 54...
Ra4+ {[%clk 0:00:55.5]} 55. Kf3 {[%clk 0:00:07.4]} 55... Ra3+ {[%clk 0:00:56]}
56. Kg2 {[%clk 0:00:08.1]} 56... Ra2+ {[%clk 0:00:56.4]} 57. Kh3 {[%clk
0:00:08.8]} 57... Ra5 {[%clk 0:00:56.9]} 58. Rg8+ {[%clk 0:00:09.3]} 58... Kh6
{[%clk 0:00:56.8]} 59. Kg2 {[%clk 0:00:08.9]} 59... Rf5 {[%clk 0:00:54.3]} 60.
Kg1 {[%clk 0:00:06.6]} 60... Kh7 {[%clk 0:00:54.5]} 61. Rb8 {[%clk 0:00:05.6]}
61... Kg6 {[%clk 0:00:54.7]} 62. Kg2 {[%clk 0:00:05.2]} 62... Rc5 {[%clk
0:00:54.5]} 63. Rb4 {[%clk 0:00:04.4]} 63... Rd5 {[%clk 0:00:54.4]} 64. Kf3
{[%clk 0:00:04.9]} 64... Rc5 {[%clk 0:00:54.8]} 65. Re4 {[%clk 0:00:04.9]} 65...
Rf5+ {[%clk 0:00:53.3]} 66. Rf4 {[%clk 0:00:04.7]} 66... Ra5 {[%clk 0:00:51.9]}
67. Rd4 {[%clk 0:00:04.2]} 67... Rf5+ {[%clk 0:00:51]} 68. Ke3 {[%clk
0:00:04.5]} 68... Re5+ {[%clk 0:00:50.7]} 69. Re4 {[%clk 0:00:05.1]} 69... Rc5
{[%clk 0:00:50.1]} 70. Re8 {[%clk 0:00:05]} 70... Re5+ {[%clk 0:00:35.5]} 71.
Rxe5 {[%clk 0:00:04.5]} 71... fxe5 {[%clk 0:00:36.4]} 72. Ke4 {[%clk 0:00:05.2]}
72... Kf6 {[%clk 0:00:36.7]} 73. Ke3 {[%clk 0:00:03.7]} 73... Kf5 {[%clk
0:00:34.6]} 74. Kf3 {[%clk 0:00:04.1]} 74... e4+ {[%clk 0:00:33.3]} 75. Kf2
{[%clk 0:00:02.6]} 75... Ke5 {[%clk 0:00:27.3]} 76. Ke3 {[%clk 0:00:02.1]} 76...
Kd5 {[%clk 0:00:27.6]} 77. Kf4 {[%clk 0:00:01.5]} 77... Kd4 {[%clk 0:00:27.4]}
78. g4 {[%clk 0:00:02.2]} 78... e3 {[%clk 0:00:24.4]} 79. gxh5 {[%clk
0:00:02.7]} 79... e2 {[%clk 0:00:24.8]} 80. h6 {[%clk 0:00:03.6]} 80... e1=Q
{[%clk 0:00:25.3]} 81. Kg5 {[%clk 0:00:04.5]} 81... Qe5+ {[%clk 0:00:24.6]} 82.
Kg6 {[%clk 0:00:05.4]} 82... Qh8 {[%clk 0:00:24.8]} 83. h7 {[%clk 0:00:06.3]}
83... Ke5 {[%clk 0:00:24.3]} 84. h5 {[%clk 0:00:07.2]} 84... Ke6 {[%clk
0:00:23.8]} 0-1

[Event "Late-Titled-Tuesday-Blitz-April-02-2024"]
[Site "Chess.com"]
[Date "2024.04.02"]
[Round "3"]
[White "Kacparov"]
[Black "Yeritsyaan"]
[Result "1-0"]
[WhiteElo "2927"]
[BlackElo "2640"]
[TimeControl "180+1"]
[EndTime "14:29:37 PDT"]
[Termination "Kacparov won by resignation"]

1. e4 {[%clk 0:03:00.9]} 1... c5 {[%clk 0:02:55.4]} 2. Nf3 {[%clk 0:03:00.9]}
2... d6 {[%clk 0:02:56]} 3. d4 {[%clk 0:03:01.3]} 3... cxd4 {[%clk 0:02:56.9]}
4. Nxd4 {[%clk 0:03:02.2]} 4... Nf6 {[%clk 0:02:56.8]} 5. f3 {[%clk 0:03:02.7]}
5... g6 {[%clk 0:02:56.8]} 6. c4 {[%clk 0:03:02.8]} 6... Bg7 {[%clk 0:02:56.9]}
7. Nc3 {[%clk 0:03:03.5]} 7... O-O {[%clk 0:02:57.5]} 8. Be3 {[%clk 0:03:03.7]}
8... Nc6 {[%clk 0:02:58.2]} 9. Qd2 {[%clk 0:03:04.1]} 9... a6 {[%clk 0:02:54.5]}
10. Be2 {[%clk 0:03:03.9]} 10... Bd7 {[%clk 0:02:52.3]} 11. O-O {[%clk
0:03:03.7]} 11... Rc8 {[%clk 0:02:51.7]} 12. Rac1 {[%clk 0:03:03.6]} 12... Nxd4
{[%clk 0:02:49.8]} 13. Bxd4 {[%clk 0:03:03.6]} 13... Bc6 {[%clk 0:02:50.3]} 14.
Rfd1 {[%clk 0:03:03.1]} 14... Nd7 {[%clk 0:02:42.4]} 15. Be3 {[%clk 0:03:03.3]}
15... a5 {[%clk 0:02:40.3]} 16. b3 {[%clk 0:03:00.9]} 16... Nc5 {[%clk
0:02:35.3]} 17. Rc2 {[%clk 0:03:01.1]} 17... Qc7 {[%clk 0:02:32.4]} 18. Bf1
{[%clk 0:03:00.8]} 18... Rfd8 {[%clk 0:02:32]} 19. Rb1 {[%clk 0:02:56.7]} 19...
b6 {[%clk 0:02:30.4]} 20. a3 {[%clk 0:02:53.4]} 20... a4 {[%clk 0:02:25.6]} 21.
b4 {[%clk 0:02:53.3]} 21... Nb3 {[%clk 0:02:25.9]} 22. Qf2 {[%clk 0:02:48.4]}
22... Rb8 {[%clk 0:02:24.4]} 23. Nd5 {[%clk 0:02:44.2]} 23... Bxd5 {[%clk
0:02:20.9]} 24. cxd5 {[%clk 0:02:45.1]} 24... Qd7 {[%clk 0:02:13.5]} 25. Rc6
{[%clk 0:02:44.6]} 25... b5 {[%clk 0:02:09.8]} 26. Rd1 {[%clk 0:02:20.3]} 26...
Rdc8 {[%clk 0:02:08.4]} 27. Qc2 {[%clk 0:02:15.2]} 27... Na1 {[%clk 0:01:56.7]}
28. Rxa1 {[%clk 0:01:31.9]} 28... Bxa1 {[%clk 0:01:54.5]} 29. Bxb5 {[%clk
0:01:31.8]} 29... Qd8 {[%clk 0:01:40.3]} 30. Bxa4 {[%clk 0:01:29.7]} 30... Ra8
{[%clk 0:01:33.7]} 31. Rxc8 {[%clk 0:01:29.2]} 31... Rxc8 {[%clk 0:01:33.7]} 32.
Bc6 {[%clk 0:01:29.4]} 32... Qf8 {[%clk 0:01:26.5]} 33. a4 {[%clk 0:01:27.8]}
33... Qg7 {[%clk 0:01:26.5]} 34. Kf1 {[%clk 0:01:14.6]} 34... Bd4 {[%clk
0:01:26.2]} 35. Bd2 {[%clk 0:01:04.5]} 35... Ba7 {[%clk 0:01:24.7]} 36. Qc3
{[%clk 0:00:58.8]} 36... Bd4 {[%clk 0:01:22.1]} 37. Qd3 {[%clk 0:00:53.9]} 37...
Ba7 {[%clk 0:01:22.5]} 38. Bc3 {[%clk 0:00:54.2]} 38... Qh6 {[%clk 0:01:22.2]}
39. h3 {[%clk 0:00:34.4]} 39... Qc1+ {[%clk 0:01:17.2]} 40. Be1 {[%clk
0:00:34.4]} 40... Rb8 {[%clk 0:01:03.3]} 41. Qc3 {[%clk 0:00:32.9]} 41... Qd1
{[%clk 0:00:57.6]} 42. a5 {[%clk 0:00:31.7]} 42... Bd4 {[%clk 0:00:25.4]} 43.
Qd2 {[%clk 0:00:31.2]} 43... Qa1 {[%clk 0:00:25.8]} 44. b5 {[%clk 0:00:28.4]}
44... Bc5 {[%clk 0:00:23.7]} 45. b6 {[%clk 0:00:24.3]} 45... f6 {[%clk
0:00:17.7]} 46. Qc3 {[%clk 0:00:23.5]} 46... Qa2 {[%clk 0:00:16.8]} 47. h4
{[%clk 0:00:22.6]} 47... h5 {[%clk 0:00:16.8]} 48. Bb5 {[%clk 0:00:15.7]} 48...
Kf7 {[%clk 0:00:14.3]} 49. Bc4 {[%clk 0:00:15.6]} 49... Qa4 {[%clk 0:00:14.7]}
50. Be2 {[%clk 0:00:15.5]} 50... Bxb6 {[%clk 0:00:13.6]} 51. axb6 {[%clk
0:00:15.6]} 51... Rxb6 {[%clk 0:00:14.5]} 52. Qc4 {[%clk 0:00:15.5]} 52... Qa1
{[%clk 0:00:13.1]} 53. Qc3 {[%clk 0:00:15.1]} 53... Qb1 {[%clk 0:00:12.1]} 54.
Kf2 {[%clk 0:00:14.7]} 54... Qa2 {[%clk 0:00:11.5]} 55. Qe3 {[%clk 0:00:10.9]}
55... Rb2 {[%clk 0:00:11.5]} 56. Kf1 {[%clk 0:00:10.5]} 56... Kg7 {[%clk
0:00:10.9]} 57. g3 {[%clk 0:00:10.9]} 57... Rb1 {[%clk 0:00:10.6]} 58. Kf2
{[%clk 0:00:10.4]} 58... Rb2 {[%clk 0:00:10.6]} 59. Qd3 {[%clk 0:00:10.6]} 59...
Rc2 {[%clk 0:00:10.4]} 60. g4 {[%clk 0:00:10.7]} 60... Qa7+ {[%clk 0:00:08]} 61.
Kf1 {[%clk 0:00:10.8]} 61... Rc1 {[%clk 0:00:07.6]} 62. Qd2 {[%clk 0:00:09.5]}
62... Rb1 {[%clk 0:00:07]} 63. gxh5 {[%clk 0:00:09.9]} 63... gxh5 {[%clk
0:00:07.9]} 64. Kg2 {[%clk 0:00:10.3]} 64... Qa1 {[%clk 0:00:06.6]} 65. Bf2
{[%clk 0:00:10.5]} 65... Rb2 {[%clk 0:00:07.1]} 66. Qe3 {[%clk 0:00:10]} 66...
Qa2 {[%clk 0:00:06.6]} 67. Bf1 {[%clk 0:00:10.2]} 67... Rc2 {[%clk 0:00:05.9]}
68. f4 {[%clk 0:00:09.7]} 68... Qb2 {[%clk 0:00:05.4]} 69. Qf3 {[%clk
0:00:09.3]} 69... Kh6 {[%clk 0:00:04.4]} 70. f5 {[%clk 0:00:08.9]} 70... Rc3
{[%clk 0:00:04.4]} 71. Qf4+ {[%clk 0:00:08.8]} 71... Kh7 {[%clk 0:00:04.6]} 72.
Kg1 {[%clk 0:00:08.5]} 72... Rc1 {[%clk 0:00:04.5]} 73. Qf3 {[%clk 0:00:08.7]}
73... Kh6 {[%clk 0:00:03.8]} 74. Be3+ {[%clk 0:00:09.1]} 74... Kh7 {[%clk
0:00:04.4]} 75. Qxh5+ {[%clk 0:00:08.9]} 75... Kg8 {[%clk 0:00:05.1]} 76. Qe8+
{[%clk 0:00:09.2]} 76... Kg7 {[%clk 0:00:05.3]} 77. Qxe7+ {[%clk 0:00:09.8]}
77... Kg8 {[%clk 0:00:06.1]} 78. Qe8+ {[%clk 0:00:10.4]} 78... Kg7 {[%clk
0:00:06.4]} 79. Qg6+ {[%clk 0:00:10.8]} 79... Kh8 {[%clk 0:00:05.7]} 80. Bxc1
{[%clk 0:00:10.6]} 80... Qxc1 {[%clk 0:00:06.1]} 81. Qxf6+ {[%clk 0:00:10.6]}
81... Kh7 {[%clk 0:00:06.9]} 82. Qg6+ {[%clk 0:00:10]} 82... Kh8 {[%clk
0:00:07.3]} 83. Qh5+ {[%clk 0:00:10.5]} 83... Kg8 {[%clk 0:00:07.4]} 84. Qg5+
{[%clk 0:00:10.9]} 84... Kh8 {[%clk 0:00:07.8]} 85. Qxc1 {[%clk 0:00:10.5]} 1-0